[Event "CZE-ch FIDE Open 2020"]
[Site "Kouty nad Desnou"]
[Date "2020.03.09"]
[Round "4.13"]
[White "Zamecnik, Jan"]
[Black "Nguyen, Thai Dai Vinh"]
[Result "1/2-1/2"]
[ECO "D11"]
[WhiteElo "1850"]
[BlackElo "2018"]
[Annotator "ChessBase"]
[PlyCount "81"]
[EventDate "2020.03.07"]
[EventCountry "CZE"]
[SourceTitle "playchess.com"]
[Source "ChessBase"]
[SourceQuality "1"]
[TimeControl "5400+30"]

1. d4 {[%emt 0:00:00]} Nf6 {[%emt 0:00:00]} 2. Nf3 {[%emt 0:00:00]} d5 {[%emt 0:00:00]} 3. g3 {[%emt 0:00:01]} Bf5 {[%emt 0:00:00]} 4. Bg2 {[%emt 0:00:08]} c6 {[%emt 0:00:00]} 5. O-O {[%emt 0:00:12]} h6 {[%emt 0:00:07]} 6. c4 {[%emt 0:00:52]} e6 {[%emt 0:00:04]} 7. Ne5 {[%emt 0:04:08]} Nbd7 {[%emt 0:00:41]} 8. Nc3 {[%emt 0:02:45]} Nxe5 {[%emt 0:11:40]} 9. dxe5 {[%emt 0:00:09]} Nd7 {[%emt 0:00:45]} 10. cxd5 {[%emt 0:03:06]} exd5 {[%emt 0:02:18]} 11. f4 {[%emt 0:04:18]} Qb6+ {[%emt 0:07:05]} 12. Kh1 {[%emt 0:02:52]} O-O-O {[%emt 0:08:05]} 13. Na4 {[%emt 0:17:22]} Qb4 {[%emt 0:18:26]} 14. a3 {[%emt 0:06:41]} Qc4 {[%emt 0:01:10]} 15. b3 {[%emt 0:10:14]} Qc2 {[%emt 0:02:19]} 16. Be3 {[%emt 0:12:59]} Qxd1 {[%emt 0:01:37]} 17. Rfxd1 {[%emt 0:01:26]} Bc2 {[%emt 0:02:24]} 18. Rdc1 {[%emt 0:00:38]} Bxb3 {[%emt 0:00:42]} 19. Nb2 {[%emt 0:01:06]} a5 {[%emt 0:05:02]} 20. a4 {[%emt 0:04:37]} Bb4 {[%emt 0:01:54]} 21. Nd3 {[%emt 0:03:26]} Be7 {[%emt 0:05:31]} 22. Bd2 {[%emt 0:01:30]} Bc4 {[%emt 0:03:35]} 23. Bxa5 {[%emt 0:02:47]} b6 {[%emt 0:00:47]} 24. Bb4 {[%emt 0:05:22]} c5 {[%emt 0:09:08]} 25. Be1 {[%emt 0:07:18]} Kc7 {[%emt 0:02:00]} 26. g4 {[%emt 0:03:35]} g5 {[%emt 0:03:22]} 27. Bg3 {[%emt 0:01:16]} h5 {[%emt 0:02:20]} 28. fxg5 {[%emt 0:00:47]} h4 {[%emt 0:00:49]} 29. Bf4 {[%emt 0:00:17]} Bxd3 {[%emt 0:00:46]} 30. exd3 {[%emt 0:00:24]} Kc6 {[%emt 0:00:20]} 31. d4 {[%emt 0:01:20]} Nf8 {[%emt 0:01:12]} 32. a5 {[%emt 0:03:26]} Ne6 {[%emt 0:00:41]} 33. Be3 {[%emt 0:00:28]} h3 {[%emt 0:01:43]} 34. Bf3 {[%emt 0:00:50]} Nxg5 {[%emt 0:03:37]} 35. dxc5 {[%emt 0:00:34]} bxa5 {[%emt 0:02:21]} 36. Bd1 {[%emt 0:00:27]} d4 {[%emt 0:01:04]} 37. Bd2 {[%emt 0:00:36]} Rd5 {[%emt 0:02:05]} 38. Bxg5 {[%emt 0:00:28]} Bxg5 {[%emt 0:00:01]} 39. Ba4+ {[%emt 0:00:30]} Kc7 {[%emt 0:00:10]} 40. Rf1 {[%emt 0:00:17]} Rf8 {[%emt 0:00:37]} 41. Rf5 {[%emt 0:00:03]} 1/2-1/2

[Event "CZE-ch FIDE Open 2020"]
[Site "Kouty nad Desnou"]
[Date "2020.03.09"]
[Round "4.14"]
[White "Merinsky, Vaclav"]
[Black "Husa, Daniel"]
[Result "0-1"]
[ECO "B50"]
[WhiteElo "1764"]
[BlackElo "1814"]
[Annotator "NA"]
[PlyCount "98"]
[EventDate "2020.03.07"]
[EventCountry "CZE"]
[SourceTitle "playchess.com"]
[Source "ChessBase"]
[SourceQuality "1"]
[TimeControl "5400+30"]

1. e4 {[%emt 0:00:00]} c5 {[%emt 0:00:00]} 2. Nf3 {[%emt 0:00:06]} e6 {[%emt 0:00:00]} 3. Nc3 {[%emt 0:00:36]} Nc6 {[%emt 0:00:00]} 4. d3 {[%emt 0:01:42]} d6 {[%emt 0:05:04]} 5. Be2 {[%emt 0:00:38]} Nf6 {[%emt 0:00:39]} 6. O-O {[%emt 0:02:05]} Be7 {[%emt 0:00:32]} 7. Bf4 {[%emt 0:01:41]} O-O {[%emt 0:01:09]} 8. e5 {[%emt 0:03:00]} Nh5 {[%emt 0:04:28]} 9. exd6 {[%emt 0:00:47]} Nxf4 {[%emt 0:00:26]} 10. dxe7 {[%emt 0:00:15]} Nxe2+ {[%emt 0:00:29]} 11. Qxe2 {[%emt 0:00:35]} Qxe7 {[%emt 0:00:17]} 12. a3 {[%emt 0:00:11]} b6 {[%emt 0:01:14]} 13. Ne4 {[%emt 0:02:04]} Bb7 {[%emt 0:01:31]} 14. Rfe1 {[%emt 0:01:12]} Rfd8 {[%emt 0:02:25]} 15. Rad1 {[%emt 0:01:55]} Rac8 {[%emt 0:03:29]} 16. Qe3 {[%emt 0:01:27]} Nd4 {[%emt 0:09:17]} 17. Nxd4 {[%emt 0:01:32]} cxd4 {[%emt 0:03:33]} 18. Qd2 {[%emt 0:00:30]} h6 {[%emt 0:05:10]} 19. Rc1 {[%emt 0:00:38]} Rc7 {[%emt 0:07:10]} 20. c4 {[%emt 0:03:15]} dxc3 {[%emt 0:00:52]} 21. Rxc3 {[%emt 0:01:24]} Rxc3 {[%emt 0:01:55]} 22. Qxc3 {[%emt 0:00:47]} Qd7 {[%emt 0:02:30]} 23. Re2 {[%emt 0:04:48]} Qxd3 {[%emt 0:04:17]} 24. Qxd3 {[%emt 0:01:30]} Rxd3 {[%emt 0:01:01]} 25. f3 {[%emt 0:00:42]} Kf8 {[%emt 0:05:32]} 26. Rc2 {[%emt 0:01:49]} Bxe4 {[%emt 0:05:23]} 27. fxe4 {[%emt 0:00:03]} Ke7 {[%emt 0:04:10]} 28. Rc7+ {[%emt 0:03:27]} Rd7 {[%emt 0:01:20]} 29. Rc2 {[%emt 0:00:09]} Kf6 {[%emt 0:01:25]} 30. Kf2 {[%emt 0:00:41]} Ke5 {[%emt 0:01:28]} 31. Ke3 {[%emt 0:01:45]} g6 {[%emt 0:11:38]} 32. h3 {[%emt 0:01:18]} f6 {[%emt 0:03:27]} 33. Rc4 {[%emt 0:02:06]} f5 {[%emt 0:01:10]} 34. exf5 {[%emt 0:01:43]} exf5 {[%emt 0:00:13]} 35. Rc6 {[%emt 0:01:05]} f4+ {[%emt 0:01:03]} 36. Ke2 {[%emt 0:00:59]} Kf5 {[%emt 0:01:20]} 37. Rc2 {[%emt 0:00:36]} h5 {[%emt 0:01:11]} 38. Rc8 {[%emt 0:01:03]} g5 {[%emt 0:02:22]} 39. Rf8+ {[%emt 0:02:33]} Kg6 {[%emt 0:01:09]} 40. Rg8+ {[%emt 0:00:29]} Rg7 {[%emt 0:00:29]} 41. Rc8 {[%emt 0:00:12]} g4 {[%emt 0:01:17]} 42. Rf8 {[%emt 0:03:37]} Kg5 {[%emt 0:00:36]} 43. hxg4 {[%emt 0:00:54]} hxg4 {[%emt 0:00:50]} 44. Kf2 {[%emt 0:01:55]} Rc7 {[%emt 0:01:29]} 45. Rg8+ {[%emt 0:01:06]} Kf5 {[%emt 0:00:23]} 46. b4 {[%emt 0:02:40]} Rc2+ {[%emt 0:01:54]} 47. Kf1 {[%emt 0:01:42]} Ra2 {[%emt 0:00:45]} 48. Rf8+ {[%emt 0:00:59]} Kg5 {[%emt 0:00:17]} 49. Rg8+ {[%emt 0:01:39]} Kh4 {[%emt 0:00:12]} 0-1

[Event "CZE-ch FIDE Open 2020"]
[Site "Kouty nad Desnou"]
[Date "2020.03.09"]
[Round "4.15"]
[White "Vaculik, Martin"]
[Black "Hradek, Matyas"]
[Result "1/2-1/2"]
[ECO "D52"]
[WhiteElo "2268"]
[BlackElo "1508"]
[Annotator "ChessBase"]
[PlyCount "37"]
[EventDate "2020.03.07"]
[EventCountry "CZE"]
[SourceTitle "playchess.com"]
[Source "ChessBase"]
[SourceQuality "1"]
[TimeControl "5400+30"]

1. d4 {[%emt 0:00:00]} d5 {[%emt 0:00:00]} 2. c4 {[%emt 0:00:00]} c6 {[%emt 0:00:00]} 3. Nf3 {[%emt 0:00:00]} Nf6 {[%emt 0:00:01]} 4. Nc3 {[%emt 0:00:12]} e6 {[%emt 0:00:19]} 5. Bg5 {[%emt 0:00:09]} Nbd7 {[%emt 0:00:34]} 6. e3 {[%emt 0:00:08]} h6 {[%emt 0:00:25]} 7. Bh4 {[%emt 0:01:10]} Bd6 {[%emt 0:03:37]} 8. Bd3 {[%emt 0:02:07]} O-O {[%emt 0:00:47]} 9. O-O {[%emt 0:00:17]} Re8 {[%emt 0:01:18]} 10. e4 {[%emt 0:03:25]} dxe4 {[%emt 0:01:34]} 11. Nxe4 {[%emt 0:00:45]} Be7 {[%emt 0:00:09]} 12. Nc3 {[%emt 0:06:45]} c5 {[%emt 0:02:01]} 13. Bg3 {[%emt 0:02:40]} Nh5 {[%emt 0:04:50]} 14. d5 {[%emt 0:00:36]} Nxg3 {[%emt 0:00:26]} 15. hxg3 {[%emt 0:00:20]} Nf6 {[%emt 0:00:59]} 16. Bc2 {[%emt 0:04:53]} exd5 {[%emt 0:02:02]} 17. cxd5 {[%emt 0:01:34]} a6 {[%emt 0:01:24]} 18. a4 {[%emt 0:06:46]} b6 {[%emt 0:01:26]} 19. Qd3 {[%emt 0:02:05]} 1/2-1/2

[Event "CZE-ch FIDE Open 2020"]
[Site "Kouty nad Desnou"]
[Date "2020.03.10"]
[Round "5.3"]
[White "Pycha, Patrik"]
[Black "Glozar, Petr"]
[Result "0-1"]
[ECO "B12"]
[WhiteElo "2024"]
[BlackElo "1918"]
[Annotator "ChessBase"]
[PlyCount "92"]
[EventDate "2020.03.07"]
[EventCountry "CZE"]
[SourceTitle "playchess.com"]
[Source "ChessBase"]
[SourceQuality "1"]
[TimeControl "5400+30"]

1. e4 {[%emt 0:00:00]} c6 {[%emt 0:00:00]} 2. d4 {[%emt 0:00:00]} d5 {[%emt 0:00:00]} 3. e5 {[%emt 0:00:00]} Bf5 {[%emt 0:00:00]} 4. h4 {[%emt 0:00:00]} h6 {[%emt 0:01:52]} 5. g4 {[%emt 0:00:00]} Bh7 {[%emt 0:01:25]} 6. e6 {[%emt 0:00:19]} fxe6 {[%emt 0:10:45]} 7. Bd3 {[%emt 0:01:56]} Nf6 {[%emt 0:07:21]} 8. Bxh7 {[%emt 0:01:15]} Nxh7 {[%emt 0:00:46]} 9. Qd3 {[%emt 0:01:18]} Qd6 {[%emt 0:01:51]} 10. f4 {[%emt 0:05:00]} Nd7 {[%emt 0:02:07]} 11. Qg6+ {[%emt 0:01:42]} Kd8 {[%emt 0:00:06]} 12. Nf3 {[%emt 0:01:06]} e5 {[%emt 0:03:11]} 13. Qxd6 {[%emt 0:23:24]} exd6 {[%emt 0:00:06]} 14. fxe5 {[%emt 0:00:33]} dxe5 {[%emt 0:00:14]} 15. Nxe5 {[%emt 0:02:03]} Nxe5 {[%emt 0:03:09]} 16. dxe5 {[%emt 0:00:05]} Bc5 {[%emt 0:01:19]} 17. Nc3 {[%emt 0:01:13]} Re8 {[%emt 0:08:30]} 18. Bf4 {[%emt 0:00:52]} Bd6 {[%emt 0:05:15]} 19. O-O {[%emt 0:06:26]} Bxe5 {[%emt 0:02:13]} 20. Rad1 {[%emt 0:00:42]} Bxc3 {[%emt 0:10:02]} 21. bxc3 {[%emt 0:00:07]} Re4 {[%emt 0:00:50]} 22. Rd4 {[%emt 0:00:55]} Rxd4 {[%emt 0:05:47]} 23. cxd4 {[%emt 0:00:05]} Ke7 {[%emt 0:00:19]} 24. Be5 {[%emt 0:02:08]} Rg8 {[%emt 0:09:02]} 25. Rb1 {[%emt 0:00:57]} b6 {[%emt 0:01:02]} 26. Re1 {[%emt 0:01:27]} Nf6 {[%emt 0:08:29]} 27. g5 {[%emt 0:08:59]} hxg5 {[%emt 0:01:23]} 28. hxg5 {[%emt 0:00:02]} Ne4 {[%emt 0:01:17]} 29. g6 {[%emt 0:00:32]} Rf8 {[%emt 0:02:11]} 30. c4 {[%emt 0:01:09]} Rf5 {[%emt 0:01:35]} 31. cxd5 {[%emt 0:00:13]} cxd5 {[%emt 0:00:33]} 32. Rc1 {[%emt 0:00:15]} Rg5+ {[%emt 0:01:11]} 33. Kh2 {[%emt 0:00:50]} Rxg6 {[%emt 0:01:51]} 34. Rc7+ {[%emt 0:00:05]} Ke6 {[%emt 0:00:55]} 35. Bxg7 {[%emt 0:02:30]} a6 {[%emt 0:01:57]} 36. Be5 {[%emt 0:00:31]} Nd2 {[%emt 0:02:07]} 37. Rc3 {[%emt 0:01:49]} Kf5 {[%emt 0:00:54]} 38. Rh3 {[%emt 0:02:26]} Ke4 {[%emt 0:01:33]} 39. Rh4+ {[%emt 0:00:40]} Kd3 {[%emt 0:00:29]} 40. Rh3+ {[%emt 0:00:39]} Ke2 {[%emt 0:01:12]} 41. Kh1 {[%emt 0:01:46]} Ne4 {[%emt 0:01:29]} 42. Rh8 {[%emt 0:00:57]} Nf2+ {[%emt 0:01:29]} 43. Kh2 {[%emt 0:00:07]} Ng4+ {[%emt 0:00:21]} 44. Kh3 {[%emt 0:00:22]} Nxe5 {[%emt 0:00:23]} 45. Re8 {[%emt 0:01:31]} Kf3 {[%emt 0:00:26]} 46. Rf8+ {[%emt 0:00:45]} Nf7 {[%emt 0:00:45]} 0-1

[Event "CZE-ch FIDE Open 2020"]
[Site "Kouty nad Desnou"]
[Date "2020.03.10"]
[Round "5.6"]
[White "Dejmal, Ondrej"]
[Black "Broz, Petr"]
[Result "1/2-1/2"]
[ECO "C25"]
[WhiteElo "1757"]
[BlackElo "1976"]
[Annotator "ChessBase"]
[PlyCount "113"]
[EventDate "2020.03.07"]
[EventCountry "CZE"]
[SourceTitle "playchess.com"]
[Source "ChessBase"]
[SourceQuality "1"]
[TimeControl "5400+30"]

1. e4 {[%emt 0:00:00]} e5 {[%emt 0:01:49]} 2. Nc3 {[%emt 0:03:22]} Bc5 {[%emt 0:02:04]} 3. Nf3 {[%emt 0:07:05]} d6 {[%emt 0:01:34]} 4. d4 {[%emt 0:05:41]} exd4 {[%emt 0:00:48]} 5. Nxd4 {[%emt 0:00:02]} Nc6 {[%emt 0:01:36]} 6. Be3 {[%emt 0:02:30]} Nxd4 {[%emt 0:00:58]} 7. Bxd4 {[%emt 0:00:05]} Bxd4 {[%emt 0:00:05]} 8. Qxd4 {[%emt 0:00:02]} Qf6 {[%emt 0:00:07]} 9. O-O-O {[%emt 0:02:57]} Qxd4 {[%emt 0:04:20]} 10. Rxd4 {[%emt 0:00:01]} Be6 {[%emt 0:00:09]} 11. Nb5 {[%emt 0:03:15]} Kd7 {[%emt 0:02:07]} 12. e5 {[%emt 0:07:31]} d5 {[%emt 0:00:20]} 13. f4 {[%emt 0:12:48]} Ne7 {[%emt 0:07:49]} 14. Rd2 {[%emt 0:05:50]} h5 {[%emt 0:05:20]} 15. c4 {[%emt 0:03:08]} c6 {[%emt 0:01:38]} 16. Nc3 {[%emt 0:03:38]} Kc7 {[%emt 0:00:16]} 17. cxd5 {[%emt 0:06:29]} Nxd5 {[%emt 0:00:34]} 18. Nxd5+ {[%emt 0:00:15]} Bxd5 {[%emt 0:00:03]} 19. Kc2 {[%emt 0:03:19]} Rad8 {[%emt 0:01:32]} 20. Bd3 {[%emt 0:02:46]} a5 {[%emt 0:10:48]} 21. a4 {[%emt 0:04:54]} Rd7 {[%emt 0:00:51]} 22. Rhd1 {[%emt 0:03:52]} Rhd8 {[%emt 0:00:26]} 23. Kc3 {[%emt 0:00:53]} g6 {[%emt 0:04:28]} 24. g3 {[%emt 0:01:53]} Bf3 {[%emt 0:01:13]} 25. Re1 {[%emt 0:01:51]} Bg4 {[%emt 0:00:35]} 26. Re3 {[%emt 0:04:11]} Rd5 {[%emt 0:02:29]} 27. b3 {[%emt 0:02:52]} Rc5+ {[%emt 0:01:26]} 28. Bc4 {[%emt 0:03:06]} Rdd5 {[%emt 0:16:54]} 29. Rxd5 {[%emt 0:09:31]} cxd5 {[%emt 0:00:06]} 30. Kd4 {[%emt 0:00:11]} Kc6 {[%emt 0:00:06]} 31. Bb5+ {[%emt 0:00:21]} Kb6 {[%emt 0:00:06]} 32. Be8 {[%emt 0:00:37]} Be6 {[%emt 0:00:11]} 33. Re2 {[%emt 0:00:59]} Rc1 {[%emt 0:02:15]} 34. h3 {[%emt 0:00:32]} Rc8 {[%emt 0:00:35]} 35. Bb5 {[%emt 0:00:27]} Bxh3 {[%emt 0:00:17]} 36. Kxd5 {[%emt 0:00:33]} Bf1 {[%emt 0:01:26]} 37. Re1 {[%emt 0:00:24]} Rd8+ {[%emt 0:00:07]} 38. Ke4 {[%emt 0:00:13]} Bxb5 {[%emt 0:00:08]} 39. axb5 {[%emt 0:00:14]} Kxb5 {[%emt 0:01:00]} 40. f5 {[%emt 0:00:34]} gxf5+ {[%emt 0:01:07]} 41. Kxf5 {[%emt 0:00:02]} Rd7 {[%emt 0:00:16]} 42. Re3 {[%emt 0:01:27]} Kc5 {[%emt 0:00:47]} 43. Kg5 {[%emt 0:00:32]} Kd4 {[%emt 0:00:07]} 44. Re1 {[%emt 0:00:18]} Re7 {[%emt 0:00:30]} 45. Rd1+ {[%emt 0:00:33]} Kxe5 {[%emt 0:03:20]} 46. Kxh5 {[%emt 0:00:10]} Rc7 {[%emt 0:04:02]} 47. Rb1 {[%emt 0:00:59]} Rc3 {[%emt 0:01:24]} 48. g4 {[%emt 0:00:29]} Rh3+ {[%emt 0:01:05]} 49. Kg5 {[%emt 0:00:30]} f6+ {[%emt 0:00:08]} 50. Kg6 {[%emt 0:00:00]} Rg3 {[%emt 0:00:37]} 51. Re1+ {[%emt 0:00:00]} Kd4 {[%emt 0:01:51]} 52. Ra1 {[%emt 0:00:35]} b6 {[%emt 0:00:37]} 53. Kxf6 {[%emt 0:00:59]} Kc3 {[%emt 0:00:43]} 54. g5 {[%emt 0:00:44]} Kb2 {[%emt 0:00:17]} 55. Rf1 {[%emt 0:00:41]} Kc3 {[%emt 0:03:17]} 56. g6 {[%emt 0:00:20]} b5 {[%emt 0:00:05]} 57. Rf5 {[%emt 0:00:32]} 1/2-1/2

[Event "CZE-ch FIDE Open 2020"]
[Site "Kouty nad Desnou"]
[Date "2020.03.10"]
[Round "5.8"]
[White "Lukas, Frantisek"]
[Black "Zdechovsky, Tobias"]
[Result "1/2-1/2"]
[ECO "A59"]
[WhiteElo "1852"]
[BlackElo "1922"]
[Annotator "ChessBase"]
[PlyCount "66"]
[EventDate "2020.03.07"]
[EventCountry "CZE"]
[SourceTitle "playchess.com"]
[Source "ChessBase"]
[SourceQuality "1"]
[TimeControl "5400+30"]

1. d4 {[%emt 0:00:00]} Nf6 {[%emt 0:00:00]} 2. c4 {[%emt 0:00:00]} c5 {[%emt 0:00:00]} 3. d5 {[%emt 0:00:00]} b5 {[%emt 0:00:00]} 4. cxb5 {[%emt 0:00:00]} a6 {[%emt 0:00:00]} 5. bxa6 {[%emt 0:00:00]} Bxa6 {[%emt 0:00:00]} 6. Nc3 {[%emt 0:00:54]} d6 {[%emt 0:00:10]} 7. e4 {[%emt 0:01:49]} Bxf1 {[%emt 0:00:07]} 8. Kxf1 {[%emt 0:00:05]} g6 {[%emt 0:00:14]} 9. g3 {[%emt 0:00:17]} Bg7 {[%emt 0:00:08]} 10. Kg2 {[%emt 0:00:06]} O-O {[%emt 0:00:11]} 11. Nf3 {[%emt 0:00:04]} Nbd7 {[%emt 0:02:19]} 12. Re1 {[%emt 0:01:21]} Ng4 {[%emt 0:09:10]} 13. Qe2 {[%emt 0:00:19]} Qa5 {[%emt 0:02:40]} 14. h3 {[%emt 0:04:54]} Nge5 {[%emt 0:01:24]} 15. Nxe5 {[%emt 0:06:44]} Nxe5 {[%emt 0:02:01]} 16. f4 {[%emt 0:04:34]} Nd7 {[%emt 0:00:07]} 17. Bd2 {[%emt 0:02:38]} Rfb8 {[%emt 0:02:35]} 18. Reb1 {[%emt 0:07:20]} Nb6 {[%emt 0:05:28]} 19. Nd1 {[%emt 0:03:45]} Qa6 {[%emt 0:00:13]} 20. Qxa6 {[%emt 0:13:33]} Rxa6 {[%emt 0:00:11]} 21. Bc3 {[%emt 0:05:06]} Nc4 {[%emt 0:02:21]} 22. Bxg7 {[%emt 0:08:35]} Kxg7 {[%emt 0:00:15]} 23. Rc1 {[%emt 0:02:18]} Nd2 {[%emt 0:05:47]} 24. e5 {[%emt 0:03:51]} Rba8 {[%emt 0:02:28]} 25. Rc3 {[%emt 0:08:00]} Rxa2 {[%emt 0:02:16]} 26. Rxa2 {[%emt 0:00:29]} Rxa2 {[%emt 0:00:14]} 27. exd6 {[%emt 0:01:44]} exd6 {[%emt 0:00:46]} 28. Rd3 {[%emt 0:03:11]} Nc4 {[%emt 0:02:01]} 29. Rc3 {[%emt 0:02:01]} Nb6 {[%emt 0:02:14]} 30. Rb3 {[%emt 0:01:51]} Nxd5 {[%emt 0:06:47]} 31. Rd3 {[%emt 0:00:19]} Nb6 {[%emt 0:02:11]} 32. Rxd6 {[%emt 0:00:47]} Nc4 {[%emt 0:04:12]} 33. Rd3 {[%emt 0:01:40]} Ra5 {[%emt 0:01:29]} 1/2-1/2

[Event "CZE-ch FIDE Open 2020"]
[Site "Kouty nad Desnou"]
[Date "2020.03.10"]
[Round "5.10"]
[White "Nguyen, Thai Dai Vinh"]
[Black "Husa, Daniel"]
[Result "1-0"]
[ECO "B45"]
[WhiteElo "2018"]
[BlackElo "1814"]
[Annotator "ChessBase"]
[PlyCount "59"]
[EventDate "2020.03.07"]
[EventCountry "CZE"]
[SourceTitle "playchess.com"]
[Source "ChessBase"]
[SourceQuality "1"]
[TimeControl "5400+30"]

1. e4 {[%emt 0:00:00]} c5 {[%emt 0:00:00]} 2. Nf3 {[%emt 0:00:00]} e6 {[%emt 0:00:00]} 3. d4 {[%emt 0:00:00]} cxd4 {[%emt 0:00:00]} 4. Nxd4 {[%emt 0:00:00]} Nf6 {[%emt 0:00:00]} 5. Nc3 {[%emt 0:00:00]} Nc6 {[%emt 0:00:00]} 6. Nxc6 {[%emt 0:01:05]} bxc6 {[%emt 0:00:00]} 7. e5 {[%emt 0:00:03]} Nd5 {[%emt 0:00:00]} 8. Ne4 {[%emt 0:00:02]} Qc7 {[%emt 0:00:07]} 9. f4 {[%emt 0:00:04]} Qb6 {[%emt 0:00:04]} 10. c4 {[%emt 0:00:04]} Bb4+ {[%emt 0:00:03]} 11. Ke2 {[%emt 0:00:03]} f5 {[%emt 0:00:37]} 12. exf6 {[%emt 0:00:05]} Nxf6 {[%emt 0:00:22]} 13. Be3 {[%emt 0:00:05]} Qd8 {[%emt 0:01:15]} 14. Nd6+ {[%emt 0:00:04]} Bxd6 {[%emt 0:00:11]} 15. Qxd6 {[%emt 0:00:05]} Bb7 {[%emt 0:01:01]} 16. Rd1 {[%emt 0:00:04]} Rc8 {[%emt 0:01:05]} 17. g4 {[%emt 0:00:08]} c5 {[%emt 0:00:42]} 18. Rg1 {[%emt 0:00:05]} Rc6 {[%emt 0:01:04]} 19. Qe5 {[%emt 0:03:08]} O-O {[%emt 0:06:27]} 20. g5 {[%emt 0:00:11]} Nh5 {[%emt 0:01:24]} 21. Bh3 {[%emt 0:00:08]} d6 {[%emt 0:02:42]} 22. Bxe6+ {[%emt 0:00:06]} Kh8 {[%emt 0:00:19]} 23. Qc3 {[%emt 0:00:12]} Nxf4+ {[%emt 0:03:19]} 24. Bxf4 {[%emt 0:00:04]} Rxf4 {[%emt 0:00:08]} 25. Rdf1 {[%emt 0:01:21]} Rxf1 {[%emt 0:37:00]} 26. Rxf1 {[%emt 0:02:20]} Qe8 {[%emt 0:03:05]} 27. Kd2 {[%emt 0:16:10]} Rc7 {[%emt 0:02:55]} 28. Qg3 {[%emt 0:04:45]} Qe7 {[%emt 0:21:07]} 29. g6 {[%emt 0:29:02]} Bc8 {[%emt 0:04:53]} 30. Qh4 {[%emt 0:00:45]} 1-0

[Event "CZE-ch FIDE Open 2020"]
[Site "Kouty nad Desnou"]
[Date "2020.03.10"]
[Round "5.12"]
[White "Vokoun, Tomas"]
[Black "Stastny, Jakub"]
[Result "0-1"]
[ECO "B20"]
[WhiteElo "1673"]
[BlackElo "1917"]
[Annotator "ChessBase"]
[PlyCount "66"]
[EventDate "2020.03.07"]
[EventCountry "CZE"]
[SourceTitle "playchess.com"]
[Source "ChessBase"]
[SourceQuality "1"]
[TimeControl "5400+30"]

1. e4 {[%emt 0:00:00]} c5 {[%emt 0:00:00]} 2. b4 {[%emt 0:00:35]} cxb4 {[%emt 0:00:00]} 3. a3 {[%emt 0:00:09]} d5 {[%emt 0:00:00]} 4. exd5 {[%emt 0:00:49]} Qxd5 {[%emt 0:00:00]} 5. Nf3 {[%emt 0:00:17]} e5 {[%emt 0:02:09]} 6. c4 {[%emt 0:00:36]} Qe6 {[%emt 0:01:15]} 7. Bd3 {[%emt 0:00:43]} Nc6 {[%emt 0:03:41]} 8. O-O {[%emt 0:02:00]} Bc5 {[%emt 0:04:19]} 9. Bb2 {[%emt 0:03:46]} Nge7 {[%emt 0:02:08]} 10. Re1 {[%emt 0:03:26]} f6 {[%emt 0:00:06]} 11. Bf1 {[%emt 0:10:29]} Nf5 {[%emt 0:01:43]} 12. axb4 {[%emt 0:12:31]} Bxb4 {[%emt 0:00:21]} 13. Na3 {[%emt 0:01:50]} O-O {[%emt 0:02:58]} 14. Nb5 {[%emt 0:03:49]} Qf7 {[%emt 0:06:21]} 15. Qc2 {[%emt 0:07:50]} Rd8 {[%emt 0:03:32]} 16. Red1 {[%emt 0:10:32]} Bc5 {[%emt 0:06:19]} 17. d3 {[%emt 0:13:30]} Nfd4 {[%emt 0:06:15]} 18. Bxd4 {[%emt 0:00:53]} Nxd4 {[%emt 0:00:12]} 19. Nfxd4 {[%emt 0:00:23]} Bxd4 {[%emt 0:00:13]} 20. Ra2 {[%emt 0:02:57]} Bf5 {[%emt 0:01:18]} 21. g3 {[%emt 0:01:31]} Bg4 {[%emt 0:02:28]} 22. Be2 {[%emt 0:04:03]} Bxe2 {[%emt 0:01:05]} 23. Qxe2 {[%emt 0:00:07]} a6 {[%emt 0:00:05]} 24. Nxd4 {[%emt 0:02:39]} Rxd4 {[%emt 0:00:02]} 25. Rb2 {[%emt 0:01:27]} Rad8 {[%emt 0:00:49]} 26. f3 {[%emt 0:02:28]} Qd7 {[%emt 0:00:55]} 27. Rdb1 {[%emt 0:01:20]} Rxd3 {[%emt 0:00:52]} 28. Rxb7 {[%emt 0:01:12]} Qd4+ {[%emt 0:00:18]} 29. Kf1 {[%emt 0:01:41]} Rd2 {[%emt 0:00:24]} 30. Qe1 {[%emt 0:00:49]} Qd3+ {[%emt 0:00:07]} 31. Kg1 {[%emt 0:00:16]} Qxf3 {[%emt 0:00:06]} 32. Qf1 {[%emt 0:00:40]} Rd1 {[%emt 0:00:19]} 33. Rxd1 {[%emt 0:00:26]} Rxd1 {[%emt 0:00:01]} 0-1

[Event "CZE-ch FIDE Open 2020"]
[Site "Kouty nad Desnou"]
[Date "2020.03.10"]
[Round "5.13"]
[White "Broz, Jan"]
[Black "Zamecnik, Jan"]
[Result "1-0"]
[ECO "C02"]
[WhiteElo "1481"]
[BlackElo "1850"]
[Annotator "NA RC"]
[PlyCount "47"]
[EventDate "2020.03.07"]
[EventCountry "CZE"]
[SourceTitle "playchess.com"]
[Source "ChessBase"]
[SourceQuality "1"]
[TimeControl "5400+30"]

{[%evp 11,44,7,-1,0,38,0,3,0,0,-43,-29,-20,-19,-122,-38,-79,92,101,112,111,125,97,108,32767,181,219,205,198,185,88,122,131,703,789,743]} 1. e4 {[%emt 0:00:00]} e6 {[%emt 0:00:00]} 2. d4 {[%emt 0:00:00]} d5 {[%emt 0:00:00]} 3. e5 {[%emt 0:00:00]} c5 {[%emt 0:00:00]} 4. c3 {[%emt 0:00:31]} Nc6 {[%emt 0:00:01]} 5. Nf3 {[%emt 0:00:26]} Qb6 {[%emt 0:00:13]} 6. a3 {[%emt 0:01:28]} c4 {[%emt 0:03:27]} 7. Be2 {[%emt 0:02:41]} f6 {[%emt 0:02:58]} 8. exf6 {[%emt 0:02:06]} Nxf6 {[%emt 0:00:18]} 9. O-O {[%emt 0:03:26] C02: French: Advance Variation.} Bd6 {[%emt 0:00:26]} 10. Qc2 {[%emt 0:05:23]} O-O {[%emt 0:03:09]} 11. Nbd2 {[%emt 0:04:56] [#]} Na5 $146 {[%emt 0:01:01]} ({Predecessor:} 11... Qc7 12. g3 e5 13. dxe5 Nxe5 14. Nxe5 Bxe5 15. Nf3 Bh3 16. Re1 Ne4 17. Be3 Bf6 {1-0 (60) Haasse,A (2021)-Lilly,R (1851) Perth 2006}) 12. Re1 {[%emt 0:05:40] [#]} (12. Bd1 $11 {remains equal.}) 12... Bd7 {[%emt 0:04:05]} (12... e5 $1 $17 {[%mdl 512]} 13. dxe5 Ng4 {[%mdl 64] Double Attack}) 13. Bf1 {[%emt 0:05:26]} Nb3 {[%emt 0:02:40]} (13... Be8 $15 {stays ahead.}) 14. Nxb3 {[%emt 0:00:16]} Ba4 {[%emt 0:00:08] Pin} 15. Qe2 {[%emt 0:04:28]} Bxb3 {[%emt 0:03:51]} 16. Qxe6+ {[%emt 0:03:23]} Kh8 {[%emt 0:00:11]} 17. Bg5 {[%emt 0:04:30]} Rad8 {[%emt 0:19:41]} (17... Ba4 $16 {was worth a try.}) 18. Bxf6 {[%emt 0:06:30]} gxf6 {[%emt 0:02:18]} 19. Nh4 {[%emt 0:05:40]} Bc2 {[%emt 0:03:10]} 20. Rac1 {[%emt 0:04:03]} ({White should try} 20. Qe2 $18 Be4 21. g3) 20... Be4 {[%emt 0:03:18]} ({Better is} 20... Qxb2 $14 21. Qe2 Rde8) 21. Qh3 {[%emt 0:03:52]} Bf4 $2 {[%emt 0:08:54] [#]} (21... Qxb2 $16 22. Rxe4 Qxc1 23. Ng6+ {[%mdl 64] Double Attack} Kg8 24. Nxf8 dxe4) 22. Rxe4 $18 {[%emt 0:03:29]} dxe4 {[%emt 0:00:22]} 23. Ng6+ {[%emt 0:00:07]} Kg7 {[%emt 0:00:04]} 24. Nxf4 {[%emt 0:00:18]} 1-0